[Event "*** Titled Tuesday Blitz"]
[Site "Chess.com"]
[Date "2020.05.26"]
[Round "9"]
[White "Superfelix"]
[Black "grzechu96"]
[Result "0-1"]
[WhiteElo "2480"]
[BlackElo "2624"]
[TimeControl "180+1"]
[EndTime "11:52:06 PDT"]
[Termination "grzechu96 won by resignation"]

1. e4 {[%clk 0:03:00.9]} 1... c5 {[%clk 0:02:59.5]} 2. Nf3 {[%clk 0:03:01]} 2...
d6 {[%clk 0:02:59.7]} 3. d4 {[%clk 0:03:01.3]} 3... cxd4 {[%clk 0:03:00.6]} 4.
Nxd4 {[%clk 0:03:02]} 4... a6 {[%clk 0:03:01.5]} 5. c4 {[%clk 0:02:59.6]} 5...
b6 {[%clk 0:03:00.8]} 6. Nc3 {[%clk 0:02:59.6]} 6... Bb7 {[%clk 0:03:01.4]} 7.
Be2 {[%clk 0:02:59.2]} 7... Nf6 {[%clk 0:03:01.9]} 8. f3 {[%clk 0:02:58.7]} 8...
e6 {[%clk 0:03:02.2]} 9. Be3 {[%clk 0:02:58.6]} 9... Be7 {[%clk 0:03:01.9]} 10.
O-O {[%clk 0:02:58.5]} 10... O-O {[%clk 0:03:02.2]} 11. Qd2 {[%clk 0:02:58.9]}
11... Nbd7 {[%clk 0:03:02.6]} 12. Rfc1 {[%clk 0:02:52.8]} 12... Re8 {[%clk
0:03:00.5]} 13. a4 {[%clk 0:02:52.5]} 13... Rb8 {[%clk 0:02:58.4]} 14. Kh1
{[%clk 0:02:51.8]} 14... Bf8 {[%clk 0:02:42.9]} 15. Bf1 {[%clk 0:02:44.7]} 15...
Qc7 {[%clk 0:02:42.8]} 16. b4 {[%clk 0:02:36.5]} 16... Qd8 {[%clk 0:02:30.5]}
17. Nb3 {[%clk 0:02:36.2]} 17... d5 {[%clk 0:02:23]} 18. exd5 {[%clk 0:02:32.7]}
18... Bxb4 {[%clk 0:02:22.9]} 19. dxe6 {[%clk 0:02:15.5]} 19... Rxe6 {[%clk
0:02:20.5]} 20. Qf2 {[%clk 0:02:14.9]} 20... Ne5 {[%clk 0:02:07.2]} 21. Nd4
{[%clk 0:02:07.3]} 21... Neg4 {[%clk 0:02:02.4]} 22. fxg4 {[%clk 0:02:01.1]}
22... Nxg4 {[%clk 0:02:03.3]} 23. Qg3 {[%clk 0:01:49.5]} 23... Rxe3 {[%clk
0:02:03.4]} 24. Qxg4 {[%clk 0:01:48.2]} 24... Rxc3 {[%clk 0:02:03.6]} 25. Nf5
{[%clk 0:01:43.7]} 25... Qf6 {[%clk 0:01:58.5]} 26. Rxc3 {[%clk 0:01:40.4]}
26... Bxc3 {[%clk 0:01:59.4]} 27. Rd1 {[%clk 0:01:40.2]} 27... Be5 {[%clk
0:01:12.5]} 28. a5 {[%clk 0:01:15.1]} 28... Bc8 {[%clk 0:01:10.6]} 29. Nh6+
{[%clk 0:01:03.3]} 29... Kf8 {[%clk 0:00:57.7]} 30. Qe4 {[%clk 0:00:42.9]} 30...
gxh6 {[%clk 0:00:54.5]} 31. axb6 {[%clk 0:00:39.8]} 31... Rxb6 {[%clk
0:00:39.9]} 32. c5 {[%clk 0:00:40]} 32... Bb7 {[%clk 0:00:31.4]} 33. Qxh7 {[%clk
0:00:35.2]} 33... Rb2 {[%clk 0:00:26.5]} 34. Qd3 {[%clk 0:00:29.6]} 34... Qf4
{[%clk 0:00:15.1]} 35. Qh3 {[%clk 0:00:29.6]} 35... Rf2 {[%clk 0:00:10.9]} 36.
Bd3 {[%clk 0:00:17]} 36... Bxg2+ {[%clk 0:00:09.7]} 37. Kg1 {[%clk 0:00:16.8]}
37... Bxh3 {[%clk 0:00:08.7]} 38. c6 {[%clk 0:00:17.6]} 0-1

[Event "*** Titled Tuesday Blitz"]
[Site "Chess.com"]
[Date "2020.05.26"]
[Round "9"]
[White "Vitor-Moraes"]
[Black "kallerotmg"]
[Result "0-1"]
[WhiteElo "1964"]
[BlackElo "2178"]
[TimeControl "180+1"]
[EndTime "11:52:06 PDT"]
[Termination "kallerotmg won by checkmate"]

1. e4 {[%clk 0:03:00.9]} 1... c5 {[%clk 0:02:53.2]} 2. Nc3 {[%clk 0:03:00.8]}
2... Nc6 {[%clk 0:02:52.9]} 3. Bb5 {[%clk 0:03:01.3]} 3... Nd4 {[%clk 0:02:47]}
4. Bc4 {[%clk 0:03:01.1]} 4... e6 {[%clk 0:02:43.4]} 5. Nge2 {[%clk 0:03:01.3]}
5... Nxe2 {[%clk 0:02:38.3]} 6. Qxe2 {[%clk 0:03:00.8]} 6... d6 {[%clk
0:02:39.2]} 7. O-O {[%clk 0:03:00.9]} 7... Nf6 {[%clk 0:02:38.5]} 8. d3 {[%clk
0:03:01.3]} 8... Be7 {[%clk 0:02:34.3]} 9. Bd2 {[%clk 0:03:01.8]} 9... O-O
{[%clk 0:02:30.8]} 10. f4 {[%clk 0:03:02.3]} 10... a6 {[%clk 0:02:29.5]} 11. a4
{[%clk 0:03:02.6]} 11... d5 {[%clk 0:02:28.9]} 12. Bb3 {[%clk 0:02:58.6]} 12...
b6 {[%clk 0:02:10]} 13. Rad1 {[%clk 0:02:49.9]} 13... Bb7 {[%clk 0:02:07.7]} 14.
Rde1 {[%clk 0:02:36.4]} 14... Rc8 {[%clk 0:02:03]} 15. exd5 {[%clk 0:02:33.4]}
15... Nxd5 {[%clk 0:01:50]} 16. Nxd5 {[%clk 0:02:32]} 16... Bxd5 {[%clk
0:01:50.9]} 17. Bxd5 {[%clk 0:02:28]} 17... Qxd5 {[%clk 0:01:51.5]} 18. Bc3
{[%clk 0:02:25.7]} 18... Bf6 {[%clk 0:01:45.5]} 19. Bxf6 {[%clk 0:02:11.4]}
19... gxf6 {[%clk 0:01:46.4]} 20. f5 {[%clk 0:01:46.4]} 20... e5 {[%clk
0:01:40.3]} 21. Qh5 {[%clk 0:01:39.5]} 21... Qd4+ {[%clk 0:01:37.2]} 22. Kh1
{[%clk 0:01:37.5]} 22... Qxb2 {[%clk 0:01:37.2]} 23. Rf3 {[%clk 0:01:31.5]}
23... Qb4 {[%clk 0:01:19.6]} 24. Ref1 {[%clk 0:01:14.1]} 24... Qd2 {[%clk
0:01:11.4]} 25. Rg3+ {[%clk 0:01:09.4]} 25... Kh8 {[%clk 0:01:06.8]} 26. Qh4
{[%clk 0:00:56.3]} 26... Rc6 {[%clk 0:00:58.6]} 27. Qg4 {[%clk 0:00:47.1]} 27...
Qh6 {[%clk 0:00:46.9]} 28. Rh3 {[%clk 0:00:42.3]} 28... Qg5 {[%clk 0:00:43.5]}
29. Qe4 {[%clk 0:00:40.4]} 29... Rd6 {[%clk 0:00:42]} 30. Rg3 {[%clk 0:00:39.4]}
30... Qh6 {[%clk 0:00:41.7]} 31. Rg4 {[%clk 0:00:34.4]} 31... Rd4 {[%clk
0:00:41.7]} 32. Qf3 {[%clk 0:00:32.6]} 32... Rxg4 {[%clk 0:00:40.4]} 33. Qxg4
{[%clk 0:00:33.5]} 33... Rg8 {[%clk 0:00:41.3]} 34. Qe4 {[%clk 0:00:31.2]} 34...
Qd2 {[%clk 0:00:37.9]} 35. c4 {[%clk 0:00:29]} 35... h6 {[%clk 0:00:35.8]} 36.
h3 {[%clk 0:00:27.3]} 36... Qb2 {[%clk 0:00:32.8]} 37. Rg1 {[%clk 0:00:23.5]}
37... Qd4 {[%clk 0:00:32.8]} 38. Qb7 {[%clk 0:00:23.5]} 38... Qxd3 {[%clk
0:00:25.2]} 39. Qxf7 {[%clk 0:00:23]} 39... Qxf5 {[%clk 0:00:24.5]} 40. Rd1
{[%clk 0:00:14.4]} 40... Qg6 {[%clk 0:00:21.4]} 41. Qb7 {[%clk 0:00:12.3]} 41...
e4 {[%clk 0:00:20.6]} 42. Re1 {[%clk 0:00:10.9]} 42... Qxg2# {[%clk 0:00:20.3]}
0-1

[Event "*** Titled Tuesday Blitz"]
[Site "Chess.com"]
[Date "2020.05.26"]
[Round "9"]
[White "Alopekos"]
[Black "gliglu"]
[Result "1-0"]
[WhiteElo "2519"]
[BlackElo "2386"]
[TimeControl "180+1"]
[EndTime "11:52:08 PDT"]
[Termination "Alopekos won on time"]

1. e4 {[%clk 0:03:00.9]} 1... e6 {[%clk 0:02:59.2]} 2. d4 {[%clk 0:03:00.9]}
2... d5 {[%clk 0:02:59.2]} 3. Nc3 {[%clk 0:03:01.4]} 3... Nf6 {[%clk 0:02:59]}
4. e5 {[%clk 0:03:01.7]} 4... Nfd7 {[%clk 0:02:58.8]} 5. Qg4 {[%clk 0:03:02.4]}
5... c5 {[%clk 0:02:58.8]} 6. dxc5 {[%clk 0:03:03.3]} 6... Nc6 {[%clk
0:02:58.8]} 7. Nf3 {[%clk 0:03:03.3]} 7... Ndxe5 {[%clk 0:02:57.6]} 8. Nxe5
{[%clk 0:03:04.2]} 8... Nxe5 {[%clk 0:02:57.7]} 9. Qg3 {[%clk 0:03:05]} 9... Nc6
{[%clk 0:02:46.7]} 10. Nb5 {[%clk 0:03:04.1]} 10... e5 {[%clk 0:02:45]} 11. Nd6+
{[%clk 0:03:04]} 11... Bxd6 {[%clk 0:02:43.8]} 12. Qxg7 {[%clk 0:03:04.6]} 12...
Rf8 {[%clk 0:02:23.5]} 13. cxd6 {[%clk 0:03:04.8]} 13... Qxd6 {[%clk 0:02:23.6]}
14. Bh6 {[%clk 0:03:04.2]} 14... Bf5 {[%clk 0:02:13]} 15. Qxf8+ {[%clk
0:03:02.9]} 15... Qxf8 {[%clk 0:02:12.9]} 16. Bxf8 {[%clk 0:03:03.8]} 16... Kxf8
{[%clk 0:02:13.3]} 17. c3 {[%clk 0:03:04.7]} 17... d4 {[%clk 0:02:10.9]} 18. Bb5
{[%clk 0:03:00.1]} 18... Ne7 {[%clk 0:02:01.1]} 19. cxd4 {[%clk 0:02:48.2]}
19... exd4 {[%clk 0:01:59.1]} 20. Kd2 {[%clk 0:02:34.4]} 20... Nd5 {[%clk
0:01:50]} 21. Rhe1 {[%clk 0:02:12.5]} 21... Rd8 {[%clk 0:01:36.8]} 22. a3 {[%clk
0:01:55.6]} 22... a6 {[%clk 0:01:34.1]} 23. Bc4 {[%clk 0:01:55.3]} 23... Nf4
{[%clk 0:01:31.2]} 24. g3 {[%clk 0:01:53.6]} 24... Nh3 {[%clk 0:01:28.5]} 25. f3
{[%clk 0:01:46]} 25... Ng5 {[%clk 0:01:26.7]} 26. Be2 {[%clk 0:01:40.3]} 26...
d3 {[%clk 0:01:23.2]} 27. Bd1 {[%clk 0:01:39.6]} 27... Ne6 {[%clk 0:01:20.7]}
28. Rc1 {[%clk 0:01:16.4]} 28... Rd5 {[%clk 0:01:09.6]} 29. b4 {[%clk
0:01:02.2]} 29... Rd6 {[%clk 0:00:20.6]} 30. Re5 {[%clk 0:00:50.8]} 30... Bg6
{[%clk 0:00:20.4]} 31. f4 {[%clk 0:00:42]} 31... f6 {[%clk 0:00:19.2]} 32. Re3
{[%clk 0:00:33.3]} 32... Bf5 {[%clk 0:00:17.3]} 33. g4 {[%clk 0:00:31.8]} 33...
Nxf4 {[%clk 0:00:08.5]} 34. gxf5 {[%clk 0:00:31.6]} 34... Rd5 {[%clk 0:00:08.7]}
35. Rc5 {[%clk 0:00:29.8]} 35... Rd4 {[%clk 0:00:06.7]} 36. Rc7 {[%clk
0:00:17.9]} 36... a5 {[%clk 0:00:03.4]} 37. Bb3 {[%clk 0:00:16.2]} 1-0

[Event "*** Titled Tuesday Blitz"]
[Site "Chess.com"]
[Date "2020.05.26"]
[Round "9"]
[White "VitaliyBernadskiy"]
[Black "Sychev_Klementy"]
[Result "0-1"]
[WhiteElo "2710"]
[BlackElo "2874"]
[TimeControl "180+1"]
[EndTime "11:52:09 PDT"]
[Termination "Sychev_Klementy won by checkmate"]

1. Nf3 {[%clk 0:03:00.9]} 1... Nf6 {[%clk 0:02:59.6]} 2. g3 {[%clk 0:02:58.5]}
2... g6 {[%clk 0:02:59.4]} 3. d3 {[%clk 0:02:55.5]} 3... d5 {[%clk 0:02:59]} 4.
Bg2 {[%clk 0:02:52.4]} 4... Bg7 {[%clk 0:02:59.2]} 5. O-O {[%clk 0:02:52.6]}
5... O-O {[%clk 0:02:59.6]} 6. c3 {[%clk 0:02:51.5]} 6... c5 {[%clk 0:02:58.6]}
7. Qb3 {[%clk 0:02:51.4]} 7... Nc6 {[%clk 0:02:54]} 8. Bf4 {[%clk 0:02:48.4]}
8... b6 {[%clk 0:02:38.5]} 9. Ne5 {[%clk 0:02:48.1]} 9... Bb7 {[%clk 0:02:36.9]}
10. Nxc6 {[%clk 0:02:47.8]} 10... Bxc6 {[%clk 0:02:36]} 11. Be5 {[%clk
0:02:47.5]} 11... e6 {[%clk 0:02:29.6]} 12. Qc2 {[%clk 0:02:28.8]} 12... Rc8
{[%clk 0:02:20.7]} 13. a4 {[%clk 0:02:23.2]} 13... Bh6 {[%clk 0:02:15.6]} 14.
Bxf6 {[%clk 0:02:07.1]} 14... Qxf6 {[%clk 0:02:13.8]} 15. Nd2 {[%clk 0:02:07.5]}
15... Rfd8 {[%clk 0:02:02.8]} 16. a5 {[%clk 0:02:07]} 16... b5 {[%clk
0:02:00.9]} 17. Nb3 {[%clk 0:02:06.8]} 17... Be8 {[%clk 0:01:46.9]} 18. a6
{[%clk 0:01:59.7]} 18... Bg7 {[%clk 0:01:32.7]} 19. Na5 {[%clk 0:01:55.8]} 19...
Rd6 {[%clk 0:01:15.6]} 20. Nb7 {[%clk 0:01:55.6]} 20... Rb6 {[%clk 0:01:15.5]}
21. Ra5 {[%clk 0:01:45.4]} 21... Qe7 {[%clk 0:01:11.5]} 22. Rfa1 {[%clk
0:01:42.2]} 22... h5 {[%clk 0:01:04.5]} 23. e4 {[%clk 0:01:28.8]} 23... d4
{[%clk 0:00:52.9]} 24. c4 {[%clk 0:01:23.2]} 24... bxc4 {[%clk 0:00:38.6]} 25.
Qxc4 {[%clk 0:01:17.1]} 25... Rb4 {[%clk 0:00:37.2]} 26. Qc2 {[%clk 0:01:16.8]}
26... c4 {[%clk 0:00:36.1]} 27. e5 {[%clk 0:01:13.2]} 27... c3 {[%clk
0:00:33.4]} 28. Nd6 {[%clk 0:01:11.5]} 28... Rc7 {[%clk 0:00:24.4]} 29. b3
{[%clk 0:00:57.3]} 29... Bc6 {[%clk 0:00:23.7]} 30. Nc4 {[%clk 0:00:25.2]} 30...
Bxg2 {[%clk 0:00:22.6]} 31. Kxg2 {[%clk 0:00:26.1]} 31... Qd8 {[%clk 0:00:20.7]}
32. R1a4 {[%clk 0:00:23.9]} 32... Rxa4 {[%clk 0:00:19.1]} 33. Rxa4 {[%clk
0:00:23.7]} 33... h4 {[%clk 0:00:19.2]} 34. Ra5 {[%clk 0:00:22.6]} 34... Qa8+
{[%clk 0:00:18.3]} 35. Kh3 {[%clk 0:00:21.6]} 35... Qf3 {[%clk 0:00:15.9]} 36.
Rb5 {[%clk 0:00:18.2]} 36... g5 {[%clk 0:00:14.8]} 37. Nd6 {[%clk 0:00:15.3]}
37... Bf8 {[%clk 0:00:09.6]} 38. Ne4 {[%clk 0:00:14.8]} 38... Be7 {[%clk
0:00:08.4]} 39. Rb7 {[%clk 0:00:14.8]} 39... g4# {[%clk 0:00:07.5]} 0-1

[Event "*** Titled Tuesday Blitz"]
[Site "Chess.com"]
[Date "2020.05.26"]
[Round "9"]
[White "Spartakus1975"]
[Black "GMSrinath"]
[Result "1-0"]
[WhiteElo "2698"]
[BlackElo "2799"]
[TimeControl "180+1"]
[EndTime "11:52:14 PDT"]
[Termination "Spartakus1975 won by resignation"]

1. e4 {[%clk 0:03:00.3]} 1... c5 {[%clk 0:02:55.2]} 2. c3 {[%clk 0:03:00]} 2...
Nf6 {[%clk 0:02:54.4]} 3. e5 {[%clk 0:02:59.9]} 3... Nd5 {[%clk 0:02:55]} 4. Nf3
{[%clk 0:03:00.5]} 4... Nc6 {[%clk 0:02:54.7]} 5. d4 {[%clk 0:03:01]} 5... cxd4
{[%clk 0:02:55.5]} 6. cxd4 {[%clk 0:03:01.5]} 6... g6 {[%clk 0:02:55.4]} 7. Qb3
{[%clk 0:02:55.3]} 7... e6 {[%clk 0:02:50.9]} 8. Nc3 {[%clk 0:02:50.4]} 8...
Nxc3 {[%clk 0:02:49.7]} 9. bxc3 {[%clk 0:02:49.9]} 9... d6 {[%clk 0:02:50.3]}
10. Bf4 {[%clk 0:02:46.4]} 10... dxe5 {[%clk 0:02:47.5]} 11. Nxe5 {[%clk
0:02:45.2]} 11... Bg7 {[%clk 0:02:44.5]} 12. Bb5 {[%clk 0:02:42.6]} 12... Bd7
{[%clk 0:02:44.3]} 13. Bxc6 {[%clk 0:02:28.3]} 13... Bxc6 {[%clk 0:02:45.2]} 14.
O-O {[%clk 0:02:25.5]} 14... Qd5 {[%clk 0:02:34.2]} 15. Nxc6 {[%clk 0:02:10.7]}
15... Qxc6 {[%clk 0:02:33.3]} 16. Rab1 {[%clk 0:01:58.4]} 16... b6 {[%clk
0:02:31.6]} 17. Qa3 {[%clk 0:01:57.2]} 17... Kd7 {[%clk 0:02:10.5]} 18. Rbc1
{[%clk 0:01:50.3]} 18... b5 {[%clk 0:01:50.3]} 19. Rfe1 {[%clk 0:01:45.1]} 19...
Qd5 {[%clk 0:01:38.1]} 20. Be5 {[%clk 0:01:32.4]} 20... f6 {[%clk 0:01:22.2]}
21. c4 {[%clk 0:01:32.1]} 21... bxc4 {[%clk 0:01:20.2]} 22. Qa4+ {[%clk
0:01:32.2]} 22... Ke7 {[%clk 0:01:12.3]} 23. Rxc4 {[%clk 0:01:10.9]} 23... Rhd8
{[%clk 0:01:06.3]} 24. Rc5 {[%clk 0:00:58.8]} 24... fxe5 {[%clk 0:00:53.6]} 25.
Rxd5 {[%clk 0:00:58]} 25... Rxd5 {[%clk 0:00:54.5]} 26. dxe5 {[%clk 0:00:57.6]}
26... Bxe5 {[%clk 0:00:55.4]} 27. Qh4+ {[%clk 0:00:48.6]} 27... Kf7 {[%clk
0:00:48.2]} 28. Qxh7+ {[%clk 0:00:48.2]} 28... Bg7 {[%clk 0:00:48.7]} 29. Qh4
{[%clk 0:00:45.9]} 29... Rad8 {[%clk 0:00:46.4]} 30. Qf4+ {[%clk 0:00:44.1]}
30... Bf6 {[%clk 0:00:44.2]} 31. g3 {[%clk 0:00:43.6]} 31... R8d6 {[%clk
0:00:42.8]} 32. Re2 {[%clk 0:00:42.7]} 32... a5 {[%clk 0:00:43]} 33. Kg2 {[%clk
0:00:42.7]} 33... Rd4 {[%clk 0:00:34.5]} 34. Qf3 {[%clk 0:00:42.1]} 34... a4
{[%clk 0:00:32.5]} 35. Re3 {[%clk 0:00:40.4]} 35... Rd2 {[%clk 0:00:28.8]} 36.
Qb7+ {[%clk 0:00:39.6]} 36... Rd7 {[%clk 0:00:26]} 37. Qa6 {[%clk 0:00:39.4]}
37... R2d6 {[%clk 0:00:17]} 38. Qxa4 {[%clk 0:00:38.9]} 38... Bd4 {[%clk
0:00:17.5]} 39. Rf3+ {[%clk 0:00:38.3]} 39... Kg7 {[%clk 0:00:17.1]} 40. h4
{[%clk 0:00:37.4]} 40... e5 {[%clk 0:00:17.2]} 41. Qc2 {[%clk 0:00:36.5]} 41...
Re7 {[%clk 0:00:15.5]} 42. Qe4 {[%clk 0:00:36.3]} 42... Ra7 {[%clk 0:00:15.3]}
43. a3 {[%clk 0:00:35.1]} 43... Rda6 {[%clk 0:00:14.9]} 44. Qg4 {[%clk 0:00:35]}
44... Rd6 {[%clk 0:00:13.3]} 45. h5 {[%clk 0:00:34.5]} 45... Rc7 {[%clk
0:00:13]} 46. hxg6 {[%clk 0:00:34.3]} 46... Rxg6 {[%clk 0:00:13.9]} 47. Qf5
{[%clk 0:00:34.3]} 47... Rcc6 {[%clk 0:00:12]} 48. Qf8+ {[%clk 0:00:34]} 48...
Kh7 {[%clk 0:00:11.2]} 49. Rf7+ {[%clk 0:00:33.4]} 1-0

[Event "*** Titled Tuesday Blitz"]
[Site "Chess.com"]
[Date "2020.05.26"]
[Round "9"]
[White "ErikBlomqvist"]
[Black "vaishali2001"]
[Result "0-1"]
[WhiteElo "2462"]
[BlackElo "2605"]
[TimeControl "180+1"]
[EndTime "11:52:14 PDT"]
[Termination "vaishali2001 won on time"]

1. e4 {[%clk 0:03:00.9]} 1... c5 {[%clk 0:02:56.8]} 2. Nf3 {[%clk 0:03:00.4]}
2... Nc6 {[%clk 0:02:56.7]} 3. Bb5 {[%clk 0:02:59.5]} 3... g6 {[%clk 0:02:55.8]}
4. O-O {[%clk 0:02:59.8]} 4... Bg7 {[%clk 0:02:55.1]} 5. Nc3 {[%clk 0:03:00.4]}
5... e5 {[%clk 0:02:27.2]} 6. Bc4 {[%clk 0:03:00.3]} 6... h6 {[%clk 0:02:15.2]}
7. a3 {[%clk 0:02:59]} 7... Nge7 {[%clk 0:02:14.2]} 8. d3 {[%clk 0:02:58.3]}
8... d6 {[%clk 0:02:13.3]} 9. Rb1 {[%clk 0:02:57.2]} 9... O-O {[%clk 0:02:08]}
10. b4 {[%clk 0:02:56.6]} 10... b6 {[%clk 0:02:08.4]} 11. bxc5 {[%clk 0:02:51]}
11... dxc5 {[%clk 0:02:07.2]} 12. Nd5 {[%clk 0:02:48.5]} 12... Be6 {[%clk
0:02:07.1]} 13. Nxe7+ {[%clk 0:02:35.9]} 13... Qxe7 {[%clk 0:02:08]} 14. Bxe6
{[%clk 0:02:32.1]} 14... Qxe6 {[%clk 0:02:08.9]} 15. a4 {[%clk 0:02:23.1]} 15...
Rad8 {[%clk 0:02:08.1]} 16. Be3 {[%clk 0:02:15.6]} 16... Rd7 {[%clk 0:01:55.2]}
17. Qd2 {[%clk 0:02:09.1]} 17... Kh7 {[%clk 0:01:52.3]} 18. Qc3 {[%clk
0:01:47.8]} 18... f5 {[%clk 0:01:31.5]} 19. Rfe1 {[%clk 0:01:28.5]} 19... f4
{[%clk 0:01:06.2]} 20. Bd2 {[%clk 0:01:19]} 20... g5 {[%clk 0:01:00.7]} 21. h3
{[%clk 0:01:09.8]} 21... g4 {[%clk 0:00:53.4]} 22. hxg4 {[%clk 0:01:08.1]} 22...
Qxg4 {[%clk 0:00:54.3]} 23. Qc4 {[%clk 0:00:47.6]} 23... Nd4 {[%clk 0:00:47.1]}
24. Nh2 {[%clk 0:00:42.2]} 24... Qg6 {[%clk 0:00:29.2]} 25. Kf1 {[%clk
0:00:20.7]} 25... Qh5 {[%clk 0:00:20.2]} 26. Nf3 {[%clk 0:00:12.3]} 26... Qh1+
{[%clk 0:00:08.9]} 27. Ng1 {[%clk 0:00:12.1]} 27... Bf6 {[%clk 0:00:08.2]} 28.
c3 {[%clk 0:00:02.7]} 28... f3 {[%clk 0:00:07.2]} 29. gxf3 {[%clk 0:00:02.2]}
29... Nxf3 {[%clk 0:00:07.1]} 30. Ke2 {[%clk 0:00:02.1]} 30... Nxg1+ {[%clk
0:00:06.9]} 31. Rxg1 {[%clk 0:00:03]} 31... Qh5+ {[%clk 0:00:07.2]} 32. Ke1
{[%clk 0:00:01.9]} 32... Bh4 {[%clk 0:00:07.5]} 33. Be3 {[%clk 0:00:02.3]} 33...
Rdf7 {[%clk 0:00:07.2]} 0-1

[Event "*** Titled Tuesday Blitz"]
[Site "Chess.com"]
[Date "2020.05.26"]
[Round "9"]
[White "UCantHandleDenker"]
[Black "1f3_2g41-0"]
[Result "1-0"]
[WhiteElo "2460"]
[BlackElo "2276"]
[TimeControl "180+1"]
[EndTime "11:52:14 PDT"]
[Termination "UCantHandleDenker won by checkmate"]

1. Nf3 {[%clk 0:02:56.2]} 1... d5 {[%clk 0:02:59.5]} 2. g3 {[%clk 0:02:55.1]}
2... Nf6 {[%clk 0:02:58.8]} 3. Bg2 {[%clk 0:02:54.9]} 3... g6 {[%clk 0:02:58.6]}
4. O-O {[%clk 0:02:54]} 4... Bg7 {[%clk 0:02:59.2]} 5. d3 {[%clk 0:02:54.3]}
5... O-O {[%clk 0:02:58.8]} 6. Nbd2 {[%clk 0:02:54.9]} 6... c5 {[%clk
0:02:50.3]} 7. e4 {[%clk 0:02:54.9]} 7... d4 {[%clk 0:02:46.5]} 8. Re1 {[%clk
0:02:53.9]} 8... Nc6 {[%clk 0:02:47]} 9. Nc4 {[%clk 0:02:44.5]} 9... b5 {[%clk
0:02:44.5]} 10. Nce5 {[%clk 0:02:44]} 10... Bb7 {[%clk 0:02:34]} 11. a4 {[%clk
0:02:40.2]} 11... a6 {[%clk 0:02:31.1]} 12. Nxc6 {[%clk 0:02:36.1]} 12... Bxc6
{[%clk 0:02:30.8]} 13. Bd2 {[%clk 0:02:32.8]} 13... Nd7 {[%clk 0:02:25.1]} 14.
e5 {[%clk 0:02:28.5]} 14... e6 {[%clk 0:02:05.3]} 15. Bf4 {[%clk 0:02:27.9]}
15... h6 {[%clk 0:02:04.5]} 16. h4 {[%clk 0:02:27.4]} 16... Kh7 {[%clk
0:02:02.9]} 17. Qd2 {[%clk 0:02:26.8]} 17... Qc7 {[%clk 0:02:00]} 18. Qe2 {[%clk
0:02:19]} 18... Nb6 {[%clk 0:01:54.5]} 19. axb5 {[%clk 0:02:16.6]} 19... axb5
{[%clk 0:01:55.4]} 20. Bd2 {[%clk 0:02:01.7]} 20... Qb7 {[%clk 0:01:48.8]} 21.
h5 {[%clk 0:01:33.8]} 21... Ra6 {[%clk 0:01:16.2]} 22. Rxa6 {[%clk 0:01:30.4]}
22... Qxa6 {[%clk 0:01:12.1]} 23. Ng5+ {[%clk 0:01:26.1]} 23... hxg5 {[%clk
0:01:10.8]} 24. Bxc6 {[%clk 0:01:23.6]} 24... Bh6 {[%clk 0:00:47.2]} 25. Be4
{[%clk 0:01:19.3]} 25... Nd7 {[%clk 0:00:45.5]} 26. hxg6+ {[%clk 0:01:18.7]}
26... fxg6 {[%clk 0:00:45.7]} 27. Bxg5 {[%clk 0:01:07.2]} 27... Kg7 {[%clk
0:00:16]} 28. Bxh6+ {[%clk 0:01:04.5]} 28... Kxh6 {[%clk 0:00:16.9]} 29. Qd2+
{[%clk 0:01:03.8]} 29... Kg7 {[%clk 0:00:16.8]} 30. Qg5 {[%clk 0:01:03]} 30...
Rf5 {[%clk 0:00:13.4]} 31. Bxf5 {[%clk 0:01:01.8]} 31... exf5 {[%clk 0:00:14.1]}
32. e6 {[%clk 0:01:01.3]} 32... Nf6 {[%clk 0:00:13.3]} 33. e7 {[%clk 0:01:00]}
33... Ne8 {[%clk 0:00:12.3]} 34. Qf4 {[%clk 0:00:57.8]} 34... Qa5 {[%clk
0:00:11.1]} 35. Qe5+ {[%clk 0:00:54.4]} 35... Kf7 {[%clk 0:00:11.6]} 36. Kf1
{[%clk 0:00:52.2]} 36... Qb6 {[%clk 0:00:10.3]} 37. Qd5+ {[%clk 0:00:50.6]}
37... Kg7 {[%clk 0:00:09.4]} 38. Re6 {[%clk 0:00:49.5]} 38... Qc7 {[%clk
0:00:07]} 39. Qd8 {[%clk 0:00:47.9]} 39... Kf7 {[%clk 0:00:06.1]} 40. Qxc7
{[%clk 0:00:42.5]} 40... Nxc7 {[%clk 0:00:06]} 41. Rc6 {[%clk 0:00:42.6]} 41...
Ne8 {[%clk 0:00:05.6]} 42. Rxc5 {[%clk 0:00:42.1]} 42... Kxe7 {[%clk 0:00:06.5]}
43. Rxb5 {[%clk 0:00:42]} 43... Kd6 {[%clk 0:00:07.2]} 44. Rb6+ {[%clk
0:00:41.5]} 44... Ke5 {[%clk 0:00:07.7]} 45. Rxg6 {[%clk 0:00:41.8]} 45... Nf6
{[%clk 0:00:08.6]} 46. f4+ {[%clk 0:00:40.9]} 46... Ke6 {[%clk 0:00:08.2]} 47.
b4 {[%clk 0:00:40.9]} 47... Ke7 {[%clk 0:00:08]} 48. Rxf6 {[%clk 0:00:40.4]}
48... Kxf6 {[%clk 0:00:07.9]} 49. Kf2 {[%clk 0:00:41.2]} 49... Ke6 {[%clk
0:00:08.2]} 50. Kf3 {[%clk 0:00:41.9]} 50... Kd5 {[%clk 0:00:09.1]} 51. g4
{[%clk 0:00:42.1]} 51... fxg4+ {[%clk 0:00:09.1]} 52. Kxg4 {[%clk 0:00:42.9]}
52... Kc6 {[%clk 0:00:10]} 53. f5 {[%clk 0:00:43.1]} 53... Kb5 {[%clk
0:00:10.9]} 54. Kf4 {[%clk 0:00:41.6]} 54... Kxb4 {[%clk 0:00:11.8]} 55. Ke4
{[%clk 0:00:42.1]} 55... Kc3 {[%clk 0:00:12.7]} 56. f6 {[%clk 0:00:42.6]} 56...
Kxc2 {[%clk 0:00:12.5]} 57. f7 {[%clk 0:00:43.5]} 57... Kc3 {[%clk 0:00:13.4]}
58. f8=Q {[%clk 0:00:43.6]} 58... Kd2 {[%clk 0:00:14.3]} 59. Qc5 {[%clk
0:00:43.5]} 59... Ke2 {[%clk 0:00:14.5]} 60. Qc2+ {[%clk 0:00:42.8]} 60... Ke1
{[%clk 0:00:15.4]} 61. Kf3 {[%clk 0:00:42.4]} 61... Kf1 {[%clk 0:00:15.8]} 62.
Qd1# {[%clk 0:00:42.1]} 1-0